[Event "GrandPrix_30.05"]
[Site "Chess.com"]
[Date "2020.05.30"]
[Round "1"]
[White "PresidenteMNE"]
[Black "Olghita64"]
[Result "0-1"]
[WhiteElo "2183"]
[BlackElo "2005"]
[TimeControl "600+2"]
[EndTime "8:25:32 PDT"]
[Termination "Olghita64 won by resignation"]

1. d4 {[%clk 0:09:57.1]} 1... d5 {[%clk 0:10:00.1]} 2. Nc3 {[%clk 0:09:56]} 2...
Nf6 {[%clk 0:09:54.9]} 3. Bf4 {[%clk 0:09:56.8]} 3... a6 {[%clk 0:09:49.4]} 4.
e3 {[%clk 0:09:54]} 4... Bf5 {[%clk 0:09:44.5]} 5. f3 {[%clk 0:09:52.5]} 5... e6
{[%clk 0:09:43]} 6. g4 {[%clk 0:09:53.3]} 6... Bg6 {[%clk 0:09:42.8]} 7. h4
{[%clk 0:09:54.4]} 7... h6 {[%clk 0:09:26.9]} 8. h5 {[%clk 0:09:54]} 8... Bh7
{[%clk 0:09:27.3]} 9. Bd3 {[%clk 0:09:55.5]} 9... Bd6 {[%clk 0:09:23.4]} 10.
Nge2 {[%clk 0:09:53.8]} 10... c5 {[%clk 0:09:11.4]} 11. Bxh7 {[%clk 0:09:52.5]}
11... Nxh7 {[%clk 0:09:10]} 12. Qd2 {[%clk 0:09:20.5]} 12... Ng5 {[%clk
0:09:01.6]} 13. Bxg5 {[%clk 0:09:19.8]} 13... Qxg5 {[%clk 0:08:44.6]} 14. O-O-O
{[%clk 0:09:20.3]} 14... Nc6 {[%clk 0:08:41.6]} 15. Rdg1 {[%clk 0:08:45.8]}
15... O-O-O {[%clk 0:08:16.8]} 16. f4 {[%clk 0:08:43.6]} 16... Qe7 {[%clk
0:08:16.5]} 17. g5 {[%clk 0:08:33.9]} 17... Kb8 {[%clk 0:07:56.8]} 18. g6 {[%clk
0:08:27.4]} 18... f6 {[%clk 0:07:46.2]} 19. f5 {[%clk 0:07:47.8]} 19... Na5
{[%clk 0:06:41]} 20. fxe6 {[%clk 0:07:23.3]} 20... Qxe6 {[%clk 0:06:30.1]} 21.
dxc5 {[%clk 0:07:19]} 21... Bxc5 {[%clk 0:05:16.5]} 22. Nd4 {[%clk 0:07:19.6]}
22... Qe5 {[%clk 0:05:07.1]} 23. b3 {[%clk 0:06:04.3]} 23... Bb4 {[%clk
0:04:27.1]} 24. Qd3 {[%clk 0:06:05.4]} 24... Rhe8 {[%clk 0:04:19.4]} 25. Nd1
{[%clk 0:05:54]} 25... Rc8 {[%clk 0:03:59.7]} 26. Kb1 {[%clk 0:05:48.2]} 26...
Ba3 {[%clk 0:03:14.7]} 27. Rf1 {[%clk 0:05:42.7]} 27... Qd6 {[%clk 0:02:17.5]}
28. Rf4 {[%clk 0:05:21.5]} 28... Rc7 {[%clk 0:01:57]} 29. Nf5 {[%clk 0:05:20.4]}
29... Qc5 {[%clk 0:01:46.3]} 30. Ra4 {[%clk 0:05:07]} 30... Nc6 {[%clk
0:01:40.6]} 31. c3 {[%clk 0:03:56.8]} 31... Ne5 {[%clk 0:00:59.7]} 32. Qd4
{[%clk 0:03:57.9]} 32... Nf3 {[%clk 0:00:57.1]} 33. Qf4 {[%clk 0:03:45.6]} 33...
Nd2+ {[%clk 0:00:55.2]} 34. Kc2 {[%clk 0:03:45.9]} 34... Ne4 {[%clk 0:00:55.6]}
35. c4 {[%clk 0:02:55.2]} 35... Re5 {[%clk 0:00:37]} 36. Nxg7 {[%clk 0:02:35.3]}
36... Rxg7 {[%clk 0:00:36.7]} 37. Qxh6 {[%clk 0:02:28.2]} 37... Ree7 {[%clk
0:00:28.7]} 38. Qh8+ {[%clk 0:02:24.3]} 38... Ka7 {[%clk 0:00:29.1]} 39. Qd8
{[%clk 0:01:59.9]} 39... Rd7 {[%clk 0:00:27.9]} 40. Qa5 {[%clk 0:01:45.8]} 40...
Qxa5 {[%clk 0:00:28.1]} 41. Rxa5 {[%clk 0:01:46]} 41... Bc5 {[%clk 0:00:16.9]}
42. Nc3 {[%clk 0:00:59.8]} 42... b6 {[%clk 0:00:11.9]} 43. Nxe4 {[%clk
0:00:46.7]} 43... dxe4 {[%clk 0:00:11.8]} 44. Rxc5 {[%clk 0:00:43.3]} 44... bxc5
{[%clk 0:00:12.4]} 45. Rg1 {[%clk 0:00:22.3]} 45... Rd8 {[%clk 0:00:09.7]} 46.
h6 {[%clk 0:00:22.7]} 46... Rgd7 {[%clk 0:00:09.6]} 47. g7 {[%clk 0:00:21.7]}
47... Rd2+ {[%clk 0:00:10.1]} 48. Kc1 {[%clk 0:00:21.9]} 48... Rh2 {[%clk
0:00:06.1]} 49. g8=Q {[%clk 0:00:21.6]} 49... Rxg8 {[%clk 0:00:07.3]} 50. Rxg8
{[%clk 0:00:21.9]} 50... Rxh6 {[%clk 0:00:09.2]} 51. Re8 {[%clk 0:00:22.8]}
51... f5 {[%clk 0:00:06.6]} 52. Re5 {[%clk 0:00:22.6]} 52... Kb6 {[%clk
0:00:05.4]} 53. Rxf5 {[%clk 0:00:23.2]} 53... Rh2 {[%clk 0:00:05.8]} 54. Re5
{[%clk 0:00:21.5]} 54... Rxa2 {[%clk 0:00:03.1]} 55. Rxe4 {[%clk 0:00:22.8]}
55... Ka5 {[%clk 0:00:04.8]} 56. Kb1 {[%clk 0:00:21.9]} 56... Re2 {[%clk
0:00:05.7]} 57. Re6 {[%clk 0:00:22]} 57... Kb4 {[%clk 0:00:06.9]} 58. Rb6+
{[%clk 0:00:22.3]} 58... Kc3 {[%clk 0:00:08.2]} 59. Rxa6 {[%clk 0:00:21.2]}
59... Kxb3 {[%clk 0:00:06.4]} 60. Rb6+ {[%clk 0:00:20.8]} 60... Kxc4 {[%clk
0:00:07.7]} 61. Kc1 {[%clk 0:00:22.1]} 61... Rxe3 {[%clk 0:00:08.2]} 62. Kd2
{[%clk 0:00:19.9]} 62... Rh3 {[%clk 0:00:09]} 63. Rg6 {[%clk 0:00:18]} 63...
Rh2+ {[%clk 0:00:10.1]} 64. Kc1 {[%clk 0:00:18.6]} 64... Kb3 {[%clk 0:00:09.9]}
65. Rg3+ {[%clk 0:00:17.7]} 65... Kb4 {[%clk 0:00:11]} 66. Rg4+ {[%clk
0:00:19.1]} 66... c4 {[%clk 0:00:12.2]} 67. Rg3 {[%clk 0:00:20.1]} 67... Rf2
{[%clk 0:00:12.4]} 68. Rh3 {[%clk 0:00:21]} 68... Rg2 {[%clk 0:00:12.5]} 69. Rf3
{[%clk 0:00:21.9]} 69... Rh2 {[%clk 0:00:13.2]} 70. Rg3 {[%clk 0:00:22.9]} 70...
Ra2 {[%clk 0:00:14]} 71. Kb1 {[%clk 0:00:23.3]} 71... Rd2 {[%clk 0:00:12.3]} 72.
Rf3 {[%clk 0:00:23.8]} 72... Rd3 {[%clk 0:00:11.5]} 73. Rxd3 {[%clk 0:00:19.6]}
73... cxd3 {[%clk 0:00:12]} 74. Kb2 {[%clk 0:00:09.9]} 74... Kc4 {[%clk
0:00:12.9]} 75. Kb1 {[%clk 0:00:08.2]} 75... Kb3 {[%clk 0:00:13.5]} 76. Kc1
{[%clk 0:00:06.9]} 76... Kc3 {[%clk 0:00:14.7]} 0-1

[Event "GrandPrix_30.05"]
[Site "Chess.com"]
[Date "2020.05.30"]
[Round "1"]
[White "Bestromano"]
[Black "VerdeNotte"]
[Result "0-1"]
[WhiteElo "2201"]
[BlackElo "2750"]
[TimeControl "600+2"]
[EndTime "8:25:33 PDT"]
[Termination "VerdeNotte won by resignation"]

1. e4 {[%clk 0:09:59.3]} 1... e5 {[%clk 0:09:58.6]} 2. Nf3 {[%clk 0:09:59]} 2...
Nc6 {[%clk 0:09:59.2]} 3. Bc4 {[%clk 0:09:59.5]} 3... Nf6 {[%clk 0:09:58]} 4. d3
{[%clk 0:10:00.4]} 4... h6 {[%clk 0:09:47.5]} 5. c3 {[%clk 0:09:57.8]} 5... Bc5
{[%clk 0:09:43.3]} 6. Nbd2 {[%clk 0:09:38.9]} 6... d6 {[%clk 0:09:40.5]} 7. Bb3
{[%clk 0:09:35.7]} 7... a6 {[%clk 0:09:28]} 8. Nf1 {[%clk 0:09:26.3]} 8... d5
{[%clk 0:09:11.1]} 9. Ng3 {[%clk 0:08:20.2]} 9... dxe4 {[%clk 0:09:11.1]} 10.
dxe4 {[%clk 0:08:22.1]} 10... Qxd1+ {[%clk 0:09:11.7]} 11. Bxd1 {[%clk
0:08:21.7]} 11... Be6 {[%clk 0:09:03.5]} 12. Bb3 {[%clk 0:07:52.9]} 12... Bxb3
{[%clk 0:09:01.3]} 13. axb3 {[%clk 0:07:54.8]} 13... O-O-O {[%clk 0:09:00.6]}
14. Ke2 {[%clk 0:07:29.3]} 14... Rd7 {[%clk 0:08:33.8]} 15. b4 {[%clk
0:07:13.4]} 15... Bb6 {[%clk 0:07:55.3]} 16. Be3 {[%clk 0:06:34.8]} 16... Bxe3
{[%clk 0:07:52.1]} 17. Kxe3 {[%clk 0:06:36.7]} 17... Rhd8 {[%clk 0:07:36.1]} 18.
Ke2 {[%clk 0:06:25.7]} 18... g6 {[%clk 0:07:05.4]} 19. Rhd1 {[%clk 0:05:40.4]}
19... Rxd1 {[%clk 0:06:57.4]} 20. Rxd1 {[%clk 0:05:42.3]} 20... Rxd1 {[%clk
0:06:58.8]} 21. Kxd1 {[%clk 0:05:42]} 21... Kd7 {[%clk 0:07:00]} 22. Ke2 {[%clk
0:05:26.1]} 22... Ke6 {[%clk 0:07:00.6]} 23. Nd2 {[%clk 0:05:17.8]} 23... Ne8
{[%clk 0:06:56.9]} 24. Kd3 {[%clk 0:05:02.3]} 24... f5 {[%clk 0:06:46.3]} 25.
Ne2 {[%clk 0:04:50.6]} 25... Nd6 {[%clk 0:06:16.6]} 26. f3 {[%clk 0:04:44.1]}
26... Nd8 {[%clk 0:06:02.7]} 27. g3 {[%clk 0:04:08.5]} 27... h5 {[%clk
0:05:45.7]} 28. h4 {[%clk 0:03:51.8]} 28... Nc6 {[%clk 0:05:37.7]} 29. Nf1
{[%clk 0:03:14.3]} 29... Ne7 {[%clk 0:05:19.2]} 30. Nd2 {[%clk 0:03:07.8]} 30...
Ng8 {[%clk 0:05:06.6]} 31. Ng1 {[%clk 0:02:30.6]} 31... Nf6 {[%clk 0:04:56.9]}
32. Nh3 {[%clk 0:02:27.2]} 32... Nf7 {[%clk 0:04:35.9]} 33. Ke3 {[%clk
0:01:48.8]} 33... Ne8 {[%clk 0:04:24.3]} 34. b3 {[%clk 0:01:25.1]} 34... Ned6
{[%clk 0:04:14.2]} 35. Kd3 {[%clk 0:01:18.1]} 35... Nb5 {[%clk 0:04:09.8]} 36.
Nc4 {[%clk 0:01:10.9]} 36... Kf6 {[%clk 0:04:03]} 37. Ne3 {[%clk 0:01:06.2]}
37... c6 {[%clk 0:03:52.7]} 38. Nc4 {[%clk 0:01:07.2]} 38... fxe4+ {[%clk
0:03:40.8]} 39. fxe4 {[%clk 0:01:05.6]} 39... Nbd6 {[%clk 0:03:21.4]} 40. Nxd6
{[%clk 0:01:01.9]} 40... Nxd6 {[%clk 0:03:23.3]} 41. Ng5 {[%clk 0:01:03.4]}
41... Nb5 {[%clk 0:03:20.6]} 42. Nf3 {[%clk 0:01:01.5]} 42... Nc7 {[%clk
0:03:08.8]} 43. Ng5 {[%clk 0:01:02.6]} 43... Ke7 {[%clk 0:03:08.1]} 44. Nf3
{[%clk 0:00:55.5]} 44... Kd6 {[%clk 0:03:08.3]} 45. Ng5 {[%clk 0:00:56.6]} 45...
Kd7 {[%clk 0:02:45.6]} 46. Nf7 {[%clk 0:00:54.9]} 46... Ke6 {[%clk 0:02:24.4]}
47. Nd8+ {[%clk 0:00:55.8]} 47... Ke7 {[%clk 0:02:17.3]} 48. Nxb7 {[%clk
0:00:57.7]} 48... Ne6 {[%clk 0:02:16.2]} 49. Nc5 {[%clk 0:00:55.5]} 49... Nc7
{[%clk 0:02:11.6]} 50. c4 {[%clk 0:00:44.8]} 50... Kd6 {[%clk 0:02:09.4]} 51.
Kc3 {[%clk 0:00:45.9]} 51... Ke7 {[%clk 0:02:09.1]} 52. Kb2 {[%clk 0:00:47]}
52... g5 {[%clk 0:01:51.9]} 53. Kc3 {[%clk 0:00:26.9]} 53... gxh4 {[%clk
0:01:38.9]} 54. gxh4 {[%clk 0:00:27.6]} 54... Kd6 {[%clk 0:01:31]} 55. Kb2
{[%clk 0:00:21.2]} 55... Ke7 {[%clk 0:01:29.8]} 56. Ka3 {[%clk 0:00:18.6]} 56...
Ne8 {[%clk 0:01:28.7]} 57. Nxa6 {[%clk 0:00:18.7]} 57... Nd6 {[%clk 0:01:22.1]}
58. Nc5 {[%clk 0:00:19.9]} 58... Nf7 {[%clk 0:01:15.8]} 59. Kb2 {[%clk 0:00:20]}
59... Nh8 {[%clk 0:01:15.9]} 60. b5 {[%clk 0:00:19.1]} 60... cxb5 {[%clk
0:01:16.2]} 61. cxb5 {[%clk 0:00:21]} 61... Kd6 {[%clk 0:01:17.2]} 62. b6 {[%clk
0:00:16.2]} 62... Ng6 {[%clk 0:01:13.3]} 63. b7 {[%clk 0:00:16.6]} 63... Kc7
{[%clk 0:01:14.3]} 64. Kc3 {[%clk 0:00:13.7]} 64... Nxh4 {[%clk 0:01:13.6]} 65.
Kb4 {[%clk 0:00:15.3]} 65... Nf3 {[%clk 0:01:03.5]} 66. Ka5 {[%clk 0:00:13.9]}
66... Nd4 {[%clk 0:01:04.5]} 67. Ka6 {[%clk 0:00:12.9]} 67... Nc6 {[%clk
0:00:50.9]} 68. Kb5 {[%clk 0:00:14.3]} 68... h4 {[%clk 0:00:49.2]} 69. Nd3
{[%clk 0:00:12.4]} 69... h3 {[%clk 0:00:43.4]} 70. Nf2 {[%clk 0:00:13.2]} 70...
h2 {[%clk 0:00:44.5]} 71. Kc5 {[%clk 0:00:14.8]} 71... Kxb7 {[%clk 0:00:38.6]}
72. b4 {[%clk 0:00:16.3]} 72... Kc7 {[%clk 0:00:28.5]} 73. Kd5 {[%clk
0:00:17.2]} 73... Nxb4+ {[%clk 0:00:29.1]} 74. Kxe5 {[%clk 0:00:18.3]} 74...
Nd3+ {[%clk 0:00:30.4]} 75. Nxd3 {[%clk 0:00:17.5]} 75... h1=Q {[%clk
0:00:31.5]} 76. Kd4 {[%clk 0:00:18.1]} 76... Qg1+ {[%clk 0:00:31.6]} 77. Kd5
{[%clk 0:00:14.8]} 77... Qd1 {[%clk 0:00:30.3]} 78. Kc4 {[%clk 0:00:15.9]} 78...
Qe2 {[%clk 0:00:27.7]} 79. Kd4 {[%clk 0:00:17.1]} 79... Qd2 {[%clk 0:00:24.3]}
80. Kc4 {[%clk 0:00:17.6]} 80... Qe3 {[%clk 0:00:25]} 81. e5 {[%clk 0:00:17.4]}
81... Qe4+ {[%clk 0:00:26.1]} 82. Kc3 {[%clk 0:00:17.5]} 82... Kb6 {[%clk
0:00:24.3]} 0-1

[Event "GrandPrix_30.05"]
[Site "Chess.com"]
[Date "2020.05.30"]
[Round "1"]
[White "Sergey_Krivenko"]
[Black "khekhm"]
[Result "0-1"]
[WhiteElo "2096"]
[BlackElo "2431"]
[TimeControl "600+2"]
[EndTime "8:25:34 PDT"]
[Termination "khekhm won by resignation"]

1. d4 {[%clk 0:09:44]} 1... Nf6 {[%clk 0:10:00.5]} 2. Nf3 {[%clk 0:09:37.2]}
2... g6 {[%clk 0:10:01.4]} 3. Bg5 {[%clk 0:09:36.8]} 3... Bg7 {[%clk 0:10:02.4]}
4. Nbd2 {[%clk 0:09:36.5]} 4... d5 {[%clk 0:10:02.8]} 5. e3 {[%clk 0:09:33.9]}
5... O-O {[%clk 0:10:02.6]} 6. Be2 {[%clk 0:09:28.7]} 6... Bf5 {[%clk
0:09:54.9]} 7. O-O {[%clk 0:09:20.3]} 7... Nbd7 {[%clk 0:09:46]} 8. c3 {[%clk
0:09:17.1]} 8... c5 {[%clk 0:09:38.6]} 9. Qb3 {[%clk 0:09:11.7]} 9... b6 {[%clk
0:08:57.2]} 10. a4 {[%clk 0:08:57.5]} 10... h6 {[%clk 0:08:50]} 11. Bh4 {[%clk
0:08:50.6]} 11... g5 {[%clk 0:08:45.9]} 12. Bg3 {[%clk 0:08:50.6]} 12... e6
{[%clk 0:08:47.4]} 13. Qa3 {[%clk 0:08:10.6]} 13... c4 {[%clk 0:08:17.8]} 14. b3
{[%clk 0:07:49.7]} 14... cxb3 {[%clk 0:08:16.7]} 15. Qxb3 {[%clk 0:07:51.6]}
15... Qe7 {[%clk 0:07:40.1]} 16. Rfc1 {[%clk 0:07:41.7]} 16... Nh5 {[%clk
0:07:32.3]} 17. c4 {[%clk 0:07:26.9]} 17... Nxg3 {[%clk 0:07:17.4]} 18. hxg3
{[%clk 0:07:28.8]} 18... dxc4 {[%clk 0:07:13.1]} 19. Nxc4 {[%clk 0:07:18.8]}
19... Rab8 {[%clk 0:07:04.5]} 20. Bd3 {[%clk 0:07:10.3]} 20... Bxd3 {[%clk
0:06:59.3]} 21. Qxd3 {[%clk 0:07:12.2]} 21... Rfc8 {[%clk 0:06:55.5]} 22. Qb3
{[%clk 0:04:55.1]} 22... Rc7 {[%clk 0:06:36.8]} 23. Na3 {[%clk 0:04:41.9]} 23...
Nf6 {[%clk 0:06:22.9]} 24. Rxc7 {[%clk 0:04:17.2]} 24... Qxc7 {[%clk 0:06:24.8]}
25. Nb5 {[%clk 0:04:16.1]} 25... Qe7 {[%clk 0:06:24]} 26. Rc1 {[%clk 0:04:11]}
26... a6 {[%clk 0:06:22.2]} 27. Nc3 {[%clk 0:03:52]} 27... Qb7 {[%clk
0:05:08.5]} 28. Ne5 {[%clk 0:03:26.8]} 28... Nd7 {[%clk 0:04:54.3]} 29. Nxd7
{[%clk 0:02:51.9]} 29... Qxd7 {[%clk 0:04:56.2]} 30. Ne4 {[%clk 0:02:48.7]}
30... Qb7 {[%clk 0:04:34.4]} 31. f3 {[%clk 0:02:32]} 31... Bf8 {[%clk
0:04:10.7]} 32. d5 {[%clk 0:02:01.3]} 32... exd5 {[%clk 0:03:45.4]} 33. Nf6+
{[%clk 0:01:45.3]} 33... Kg7 {[%clk 0:03:46.4]} 34. Qc3 {[%clk 0:01:36]} 34...
Kg6 {[%clk 0:03:29.2]} 35. g4 {[%clk 0:00:50.4]} 35... Bg7 {[%clk 0:01:53.4]}
36. Qd3+ {[%clk 0:00:49.6]} 36... Kxf6 {[%clk 0:01:54.7]} 37. Qc3+ {[%clk
0:00:49.2]} 37... Ke6 {[%clk 0:01:50.1]} 38. Qxg7 {[%clk 0:00:48.1]} 38... Rc8
{[%clk 0:01:51.5]} 39. Qxh6+ {[%clk 0:00:47.3]} 39... f6 {[%clk 0:01:52.2]} 40.
Rd1 {[%clk 0:00:28.4]} 40... Qc7 {[%clk 0:01:28.9]} 41. e4 {[%clk 0:00:13.4]}
41... dxe4 {[%clk 0:00:52.1]} 42. Qg6 {[%clk 0:00:12.1]} 42... Qc5+ {[%clk
0:00:48.4]} 43. Kf1 {[%clk 0:00:12.7]} 43... Qe5 {[%clk 0:00:27.6]} 44. Re1
{[%clk 0:00:11]} 44... e3 {[%clk 0:00:28.7]} 45. Qd3 {[%clk 0:00:10.7]} 45...
Rc3 {[%clk 0:00:24.9]} 46. Qxa6 {[%clk 0:00:10]} 46... Qd4 {[%clk 0:00:17.8]}
47. Qb7 {[%clk 0:00:08.9]} 47... Rc2 {[%clk 0:00:13.8]} 48. Qe4+ {[%clk
0:00:07.4]} 48... Qxe4 {[%clk 0:00:14.2]} 49. fxe4 {[%clk 0:00:09.3]} 49... Rc4
{[%clk 0:00:15.9]} 50. Rxe3 {[%clk 0:00:09.2]} 50... Rxa4 {[%clk 0:00:17.1]} 51.
Rb3 {[%clk 0:00:08.2]} 51... Rxe4 {[%clk 0:00:09.9]} 52. Rxb6+ {[%clk
0:00:09.3]} 52... Ke5 {[%clk 0:00:11.8]} 53. Rb5+ {[%clk 0:00:09.6]} 53... Ke6
{[%clk 0:00:05.2]} 54. Kf2 {[%clk 0:00:10]} 54... Rxg4 {[%clk 0:00:06.1]} 55. g3
{[%clk 0:00:10.6]} 55... Rd4 {[%clk 0:00:06.9]} 56. Rb2 {[%clk 0:00:09.7]} 56...
Kf5 {[%clk 0:00:07.9]} 57. Kf3 {[%clk 0:00:06.8]} 57... Rd3+ {[%clk 0:00:08.9]}
58. Kg2 {[%clk 0:00:07.2]} 58... Ke4 {[%clk 0:00:10]} 59. Rb4+ {[%clk
0:00:06.2]} 59... Rd4 {[%clk 0:00:11.1]} 60. Rb2 {[%clk 0:00:06.3]} 60... Rd3
{[%clk 0:00:07.8]} 61. Rb6 {[%clk 0:00:05.8]} 61... f5 {[%clk 0:00:07.3]} 62.
Re6+ {[%clk 0:00:05.6]} 62... Kd5 {[%clk 0:00:07.3]} 63. Rg6 {[%clk 0:00:05.9]}
63... g4 {[%clk 0:00:08.4]} 64. Rf6 {[%clk 0:00:05.9]} 64... Rd2+ {[%clk
0:00:09.1]} 65. Kg1 {[%clk 0:00:06.1]} 65... Ke4 {[%clk 0:00:11]} 66. Kf1 {[%clk
0:00:04.1]} 66... Ra2 {[%clk 0:00:08.9]} 67. Rf8 {[%clk 0:00:03.8]} 67... Rb2
{[%clk 0:00:06.7]} 68. Rf7 {[%clk 0:00:04.6]} 68... Rb1+ {[%clk 0:00:07.9]} 69.
Kf2 {[%clk 0:00:04]} 69... Rb2+ {[%clk 0:00:09.8]} 70. Kf1 {[%clk 0:00:04.6]}
70... Rb5 {[%clk 0:00:11.7]} 71. Rf8 {[%clk 0:00:05]} 71... Kf3 {[%clk
0:00:12.4]} 72. Rc8 {[%clk 0:00:04.1]} 72... Kxg3 {[%clk 0:00:13]} 73. Rc3+
{[%clk 0:00:06]} 73... Kh4 {[%clk 0:00:13.9]} 0-1

[Event "GrandPrix_30.05"]
[Site "Chess.com"]
[Date "2020.05.30"]
[Round "1"]
[White "ehrenfeld"]
[Black "Petriashvili02"]
[Result "0-1"]
[WhiteElo "1926"]
[BlackElo "2279"]
[TimeControl "600+2"]
[EndTime "8:25:34 PDT"]
[Termination "Petriashvili02 won on time"]

1. e4 {[%clk 0:10:01.3]} 1... c6 {[%clk 0:09:55.3]} 2. d4 {[%clk 0:10:01.5]}
2... d5 {[%clk 0:09:43.4]} 3. exd5 {[%clk 0:10:02]} 3... cxd5 {[%clk 0:09:45.3]}
4. Bd3 {[%clk 0:10:02.6]} 4... Nc6 {[%clk 0:09:40.8]} 5. c3 {[%clk 0:10:03.5]}
5... Nf6 {[%clk 0:09:41.7]} 6. Bf4 {[%clk 0:10:03.6]} 6... g6 {[%clk 0:09:41.3]}
7. Nf3 {[%clk 0:10:03.5]} 7... Bg7 {[%clk 0:09:42.6]} 8. O-O {[%clk 0:10:04.4]}
8... O-O {[%clk 0:09:43.9]} 9. Re1 {[%clk 0:10:05.3]} 9... b6 {[%clk 0:08:58.4]}
10. Nbd2 {[%clk 0:10:03.6]} 10... Bb7 {[%clk 0:08:59.4]} 11. h4 {[%clk
0:09:57.4]} 11... e6 {[%clk 0:08:50.9]} 12. Nf1 {[%clk 0:09:08.6]} 12... Nh5
{[%clk 0:07:01.8]} 13. Bg5 {[%clk 0:09:04.8]} 13... Qd6 {[%clk 0:07:00.1]} 14.
N1h2 {[%clk 0:08:27.1]} 14... f6 {[%clk 0:06:46.3]} 15. Bd2 {[%clk 0:08:23.8]}
15... e5 {[%clk 0:06:45.7]} 16. dxe5 {[%clk 0:08:12.9]} 16... fxe5 {[%clk
0:06:47.6]} 17. Ng5 {[%clk 0:06:53.1]} 17... e4 {[%clk 0:05:57.9]} 18. Bf1
{[%clk 0:06:36.7]} 18... Rxf2 {[%clk 0:04:59.3]} 19. Be3 {[%clk 0:05:37.6]}
19... Rxb2 {[%clk 0:03:03.2]} 20. Nxe4 {[%clk 0:05:36.9]} 20... Qd8 {[%clk
0:02:27.1]} 21. Bg5 {[%clk 0:04:03.4]} 21... Qd7 {[%clk 0:01:52.7]} 22. Qc1
{[%clk 0:03:52.1]} 22... dxe4 {[%clk 0:01:39.9]} 23. Qxb2 {[%clk 0:03:52]} 23...
Ne5 {[%clk 0:01:37.2]} 24. Rad1 {[%clk 0:03:47.1]} 24... Qc7 {[%clk 0:01:37.4]}
25. Qb3+ {[%clk 0:03:39.5]} 25... Kh8 {[%clk 0:01:37]} 26. Qe6 {[%clk
0:03:32.6]} 26... Rf8 {[%clk 0:01:08.7]} 27. Qe7 {[%clk 0:03:13.4]} 27... Qxe7
{[%clk 0:00:22.9]} 28. Bxe7 {[%clk 0:03:13.7]} 28... Re8 {[%clk 0:00:24.4]} 29.
Bb5 {[%clk 0:02:12.6]} 29... Rc8 {[%clk 0:00:25.6]} 30. Rd8+ {[%clk 0:02:11]}
30... Rxd8 {[%clk 0:00:27]} 31. Bxd8 {[%clk 0:02:12.1]} 31... Nf4 {[%clk
0:00:28.1]} 32. Bc7 {[%clk 0:01:53.3]} 32... Ned3 {[%clk 0:00:22.7]} 33. Bxd3
{[%clk 0:01:37.4]} 33... Nxd3 {[%clk 0:00:23.8]} 34. Rf1 {[%clk 0:00:37.3]}
34... Bxc3 {[%clk 0:00:24.9]} 35. Rf7 {[%clk 0:00:31.7]} 35... e3 {[%clk
0:00:18]} 36. Kf1 {[%clk 0:00:28]} 36... Ba6 {[%clk 0:00:18.6]} 37. Kg1 {[%clk
0:00:12.2]} 37... e2 {[%clk 0:00:18.4]} 38. Nf3 {[%clk 0:00:11.4]} 38... e1=Q+
{[%clk 0:00:16.8]} 39. Nxe1 {[%clk 0:00:12]} 39... Nxe1 {[%clk 0:00:18]} 40. Bb8
{[%clk 0:00:10.9]} 40... Bd4+ {[%clk 0:00:17.5]} 41. Kh2 {[%clk 0:00:11.1]}
41... Bc4 {[%clk 0:00:18.6]} 42. Rxa7 {[%clk 0:00:11]} 42... Nc2 {[%clk
0:00:17.2]} 43. Rd7 {[%clk 0:00:10.2]} 43... Kg8 {[%clk 0:00:16.5]} 44. Bc7
{[%clk 0:00:08.8]} 44... b5 {[%clk 0:00:17.3]} 45. a3 {[%clk 0:00:07.6]} 45...
Be6 {[%clk 0:00:18.1]} 46. Re7 {[%clk 0:00:07.6]} 46... Bc4 {[%clk 0:00:16.3]}
47. Bd6 {[%clk 0:00:08.3]} 47... Bf6 {[%clk 0:00:17.2]} 48. Rb7 {[%clk
0:00:07.6]} 48... Bxh4 {[%clk 0:00:16.5]} 49. Kh3 {[%clk 0:00:07.8]} 49... Bf6
{[%clk 0:00:17.7]} 50. g4 {[%clk 0:00:08.5]} 50... Nd4 {[%clk 0:00:18.3]} 51.
Kg3 {[%clk 0:00:07.3]} 51... Bd5 {[%clk 0:00:19.6]} 52. Ra7 {[%clk 0:00:07.2]}
52... Be6 {[%clk 0:00:20.6]} 53. Kf4 {[%clk 0:00:06.4]} 53... Ne2+ {[%clk
0:00:18.7]} 54. Ke3 {[%clk 0:00:06.7]} 54... Nc3 {[%clk 0:00:19.4]} 55. Kf3
{[%clk 0:00:07]} 55... Nd5 {[%clk 0:00:19.9]} 56. Ke4 {[%clk 0:00:06.9]} 56...
h5 {[%clk 0:00:19.1]} 57. gxh5 {[%clk 0:00:07.2]} 57... gxh5 {[%clk 0:00:21]}
58. Be5 {[%clk 0:00:07.9]} 58... Be7 {[%clk 0:00:18.3]} 59. Ra8+ {[%clk
0:00:05.8]} 59... Kf7 {[%clk 0:00:19]} 60. Rh8 {[%clk 0:00:06.6]} 60... Nf6+
{[%clk 0:00:20.4]} 61. Bxf6 {[%clk 0:00:06.8]} 61... Kxf6 {[%clk 0:00:19.9]} 62.
Rxh5 {[%clk 0:00:08.2]} 62... Bc4 {[%clk 0:00:21]} 63. Rh3 {[%clk 0:00:06.9]}
63... Ke6 {[%clk 0:00:22.3]} 64. Kd4 {[%clk 0:00:07.7]} 64... Kd6 {[%clk
0:00:23.9]} 65. Rh6+ {[%clk 0:00:08.2]} 65... Be6 {[%clk 0:00:22.6]} 66. Rg6
{[%clk 0:00:07.5]} 66... Kd7 {[%clk 0:00:23.6]} 67. Rg3 {[%clk 0:00:07.1]} 67...
Kc6 {[%clk 0:00:23.9]} 68. Rc3+ {[%clk 0:00:07.7]} 68... Kb6 {[%clk 0:00:23.6]}
69. Rd3 {[%clk 0:00:08]} 69... Bc5+ {[%clk 0:00:24.4]} 70. Ke5 {[%clk
0:00:07.8]} 70... Bc4 {[%clk 0:00:25.5]} 71. Rh3 {[%clk 0:00:08]} 71... Ka5
{[%clk 0:00:27.1]} 72. Ke4 {[%clk 0:00:07.8]} 72... Ka4 {[%clk 0:00:28.3]} 73.
Rh8 {[%clk 0:00:07.3]} 73... Bxa3 {[%clk 0:00:29.4]} 74. Ra8+ {[%clk 0:00:06.6]}
74... Kb4 {[%clk 0:00:30.8]} 75. Ke3 {[%clk 0:00:06.8]} 75... Bc1+ {[%clk
0:00:31.6]} 76. Kd4 {[%clk 0:00:07]} 76... Bb2+ {[%clk 0:00:32.5]} 77. Ke3
{[%clk 0:00:07.8]} 77... Kc3 {[%clk 0:00:34.1]} 78. Rd8 {[%clk 0:00:05.8]} 78...
b4 {[%clk 0:00:35.2]} 79. Rc8 {[%clk 0:00:04.2]} 79... b3 {[%clk 0:00:36.3]} 80.
Rc7 {[%clk 0:00:03.7]} 80... Ba3 {[%clk 0:00:37.4]} 81. Rb7 {[%clk 0:00:02.9]}
81... Bb4 {[%clk 0:00:38.6]} 0-1